fUST/lending_fUST_20240906
["ID","MTS","AMOUNT","RATE_DAILY","PERIOD"]
[337336786,1725613840483,-500.0,0.00019566,2]
[337336787,1725613840493,-500.0,0.00019566,2]
[337336788,1725613840503,-500.0,0.00019566,2]
[337336789,1725613840513,-500.0,0.00019566,2]
[337336790,1725613840522,-500.0,0.00019566,2]
[337336791,1725613840531,-500.0,0.00019566,2]
[337336792,1725613840541,-500.0,0.00019566,2]
[337336793,1725613840551,-500.0,0.00019566,2]
[337336794,1725613840560,-500.0,0.00019566,2]
[337336795,1725613840569,-500.0,0.00019566,2]
[337336796,1725613840579,-500.0,0.00019566,2]
[337336797,1725613840588,-500.0,0.00019566,2]
[337336798,1725613840598,-500.0,0.00019566,2]
[337336799,1725613840607,-500.0,0.00019566,2]
[337336800,1725613840617,-500.0,0.00019566,2]
[337336801,1725613840627,-500.0,0.00019566,2]
[337336802,1725613840636,-500.0,0.00019566,2]
[337336803,1725613840647,-500.0,0.00019566,2]
[337336804,1725613840656,-500.0,0.00019566,2]
[337336805,1725613840665,-500.0,0.00019566,2]
[337336806,1725613840675,-515.00751062,0.00019566,2]
[337336807,1725613840685,-500.0,0.00019566,2]
[337336808,1725613840695,-500.0,0.00019566,2]
[337336809,1725613840704,-5840.53024601,0.00019567,3]
[337336810,1725613840715,-82825.0950577,0.00019567,2]
[337336811,1725613840725,-2064.19,0.00019567,2]
[337336812,1725613840735,-3437.12,0.00019567,2]
[337336813,1725613840744,-1519.09,0.00019567,2]
[337336814,1725613840754,-1557.63,0.00019567,2]
[337336815,1725613840763,-500.0,0.00019567,2]
[337336816,1725613840772,-3136.84,0.00019567,2]
[337336817,1725613840782,-500.0,0.00019567,2]
[337336818,1725613840791,-9482.9,0.00019567,2]
[337336819,1725613840801,-1939.09,0.00019567,2]
[337336820,1725613840810,-2738.31,0.00019567,2]
[337336821,1725613840823,-500.0,0.00019567,2]
[337336822,1725613840833,-502.6155908,0.00019567,2]
[337336823,1725613840844,-1532.53,0.00019567,2]
[337336824,1725613840854,-500.0,0.00019567,2]
[337336825,1725613840865,-26803.18,0.00019567,2]
[337336826,1725613840874,-1775.52,0.00019567,2]
[337336827,1725613840884,-3500.27,0.00019567,2]
[337336828,1725613840894,-2445.21,0.00019567,2]
[337336829,1725613840903,-5105.8,0.00019567,2]
[337336830,1725613840913,-2072.14,0.00019567,2]
[337336831,1725613840922,-3079.79,0.00019567,2]
[337336832,1725613840932,-500.0,0.00019567,2]
[337336833,1725613840941,-1730.52,0.00019567,2]
[337336834,1725613840951,-1705.19,0.00019567,2]
[337336835,1725613840963,-151.0,0.00019567,2]
[337336836,1725613840977,-151.0,0.00019567,2]
[337336837,1725613840987,-533.5,0.00019567,2]
[337336838,1725613840997,-500.0,0.00019567,2]
[337336839,1725613841006,-8076.12,0.00019567,2]
[337336840,1725613841016,-172.169871,0.00019567,2]
[337336841,1725613841025,-151.0,0.00019567,2]
[337336842,1725613841035,-172.169871,0.00019567,2]
[337336843,1725613841045,-3885.78,0.00019567,2]
[337336844,1725613841054,-151.0,0.00019567,2]
[337336845,1725613841064,-2033.57,0.00019567,2]
[337336846,1725613841074,-151.0,0.00019567,2]
[337336847,1725613841083,-500.0,0.00019567,2]
[337336848,1725613841093,-2028.47,0.00019567,2]
[337336849,1725613841102,-1488.03,0.00019567,2]
[337336850,1725613841113,-571.64414905,0.00019567,2]
[337336851,1725613841122,-151.0,0.00019567,2]
[337336852,1725613841131,-500.0,0.00019567,2]
[337336853,1725613841141,-500.0,0.00019567,2]
[337336854,1725613841151,-2792.18,0.00019567,2]
[337336855,1725613841161,-500.0,0.00019568,2]
[337336856,1725613841171,-500.0,0.00019568,2]
[337336857,1725613841181,-500.0,0.00019568,2]
[337336858,1725613841190,-509.31270051,0.00019568,2]
[337336859,1725613841200,-500.0,0.00019568,2]
[337336860,1725613841212,-501.54181983,0.00019568,2]
[337336861,1725613841222,-600.83692744,0.00019568,2]
[337336862,1725613841231,-500.0,0.00019568,2]
[337336863,1725613841241,-558.37,0.00019568,2]
[337336864,1725613841250,-510.76,0.00019568,2]
[337336865,1725613841260,-537.34,0.00019568,2]
[337336866,1725613841270,-500.0,0.00019568,2]
[337336867,1725613841281,-500.0,0.00019568,2]
[337336868,1725613841290,-500.0,0.00019568,2]
[337336869,1725613841300,-500.0,0.00019568,2]
[337336870,1725613841309,-604.73,0.00019568,2]
[337336871,1725613841319,-500.0,0.00019568,2]
[337336872,1725613841328,-1230.09,0.00019568,2]
[337336873,1725613841338,-1073.16,0.00019568,2]
[337336874,1725613841347,-500.0,0.00019568,2]
[337336875,1725613841356,-500.0,0.00019568,2]
[337336876,1725613841366,-1715.84,0.00019568,2]
[337336877,1725613841376,-936.9,0.00019568,2]
[337336878,1725613841386,-500.0,0.00019568,2]
[337336879,1725613841395,-500.0,0.00019568,2]
[337336880,1725613841404,-500.0,0.00019568,2]
[337336881,1725613841414,-500.0,0.00019568,2]
[337336882,1725613841423,-500.0,0.00019568,2]
[337336883,1725613841433,-765.33,0.00019568,2]
[337336884,1725613841442,-500.0,0.00019568,2]
[337336885,1725613841452,-550.85,0.00019568,2]
[337336886,1725613841464,-500.0,0.00019568,2]
[337336887,1725613841473,-500.0,0.00019568,2]
[337336888,1725613841483,-500.0,0.00019568,2]
[337336889,1725613841493,-500.0,0.00019568,2]
[337336890,1725613841503,-568.43,0.00019568,2]
[337336891,1725613841513,-500.0,0.00019568,2]
[337336892,1725613841523,-500.0,0.00019568,2]
[337336893,1725613841532,-652.82,0.00019568,2]
[337336894,1725613841542,-500.0,0.00019568,2]
[337336895,1725613841552,-500.0,0.00019568,2]
[337336896,1725613841561,-500.0,0.00019568,2]
[337336897,1725613841570,-500.0,0.00019568,2]
[337336898,1725613841580,-2414.51,0.00019568,2]
[337336899,1725613841589,-1479.61,0.00019568,2]
[337336900,1725613841599,-500.0,0.00019568,2]
[337336901,1725613841608,-500.0,0.00019568,2]
[337336902,1725613841617,-500.0,0.00019568,2]
[337336903,1725613841627,-500.0,0.00019568,2]
[337336904,1725613841636,-2079.22,0.00019568,2]
[337336905,1725613841646,-516.57,0.00019568,2]
[337336906,1725613841655,-500.0,0.00019568,2]
[337336907,1725613841665,-500.0,0.00019568,2]
[337336908,1725613841674,-500.0,0.00019568,2]
[337336909,1725613841684,-1083.74,0.00019568,2]
[337336910,1725613841693,-500.0,0.00019568,2]
[337336911,1725613841703,-500.0,0.00019568,2]
[337336912,1725613841713,-612.64,0.00019568,2]
[337336913,1725613841723,-509.01528076,0.00019568,2]
[337336914,1725613841732,-537.6994708,0.00019568,2]
[337336915,1725613841742,-526.84,0.00019568,2]
[337336916,1725613841751,-522.13,0.00019568,2]
[337336917,1725613841760,-2659.05,0.00019568,2]
[337336918,1725613841770,-500.0,0.00019568,2]
[337336919,1725613841779,-500.0,0.00019568,2]
[337336920,1725613841789,-602.76008669,0.00019568,2]
[337336921,1725613841799,-500.0,0.00019568,2]
[337336922,1725613841808,-500.0,0.00019568,2]
[337336923,1725613841822,-2546.73,0.00019568,2]
[337336924,1725613841832,-500.0,0.00019568,2]
[337336925,1725613841841,-1678.16,0.00019568,2]
[337336926,1725613841852,-151.0,0.00019568,2]
[337336927,1725613841863,-151.0,0.00019568,2]
[337336928,1725613841873,-500.0,0.00019568,2]
[337336929,1725613841882,-500.0,0.00019568,2]
[337336930,1725613841892,-172.169871,0.00019568,2]
[337336931,1725613841902,-500.0,0.00019568,2]
[337336932,1725613841912,-151.0,0.00019568,2]
[337336933,1725613841922,-172.169871,0.00019568,2]
[337336934,1725613841932,-151.0,0.00019568,2]
[337336935,1725613841942,-500.0,0.00019568,2]
[337336936,1725613841952,-151.0,0.00019568,2]
[337336937,1725613841963,-807.74,0.00019568,2]
[337336938,1725613841973,-512.38,0.00019568,2]
[337336939,1725613841983,-151.0,0.00019568,2]
[337336940,1725613841993,-506.3228753,0.00019568,2]
[337336941,1725613842003,-500.0,0.00019573,2]
[337336942,1725613842012,-500.0,0.00019573,2]
[337336943,1725613842022,-500.0,0.00019573,2]
[337336944,1725613842032,-500.0,0.00019573,2]
[337336945,1725613842042,-407.39730399,0.00019573,2]
[337336946,1725613842052,-160.72089228,0.00019573,2]
[337336947,1725613842063,-500.0,0.00019573,2]
[337336948,1725613842074,-500.0,0.00019573,2]
[337336949,1725613842086,-500.0,0.00019573,2]
[337336950,1725613842098,-44964.05977004,0.00019575,2]
[337336994,1725614002640,4541.2968736,0.0001854,2]
[337336996,1725614364759,2675.81150367,0.0001881,2]
[337337041,1725615032010,-2675.81150367,0.0001931,2]
[337337042,1725615032020,-257.06976617,0.00019427,2]
[337337043,1725615032029,-566.46881589,0.00019455,2]
[337337044,1725615032039,-300.0,0.00019487,2]
[337337045,1725615032049,-1680.86585136,0.00019487,2]
[337337089,1725615040181,-1319.13414864,0.00019487,2]
[337337090,1725615040191,-3021.64871583,0.00019488,2]
[337337091,1725615040204,-516.78,0.00019516,3]
[337337092,1725615040214,-500.0,0.00019525,2]
[337337093,1725615040224,-500.0,0.00019525,2]
[337337095,1725615040233,-500.0,0.00019525,2]
[337337097,1725615040242,-500.0,0.00019525,2]
[337337099,1725615040251,-1830.23,0.00019525,2]
[337337100,1725615040260,-83368.6394084,0.00019526,2]
[337337102,1725615040271,-265769.702014,0.00019526,2]
[337337103,1725615040281,-1532.53,0.00019526,2]
[337337104,1725615040291,-5105.8,0.00019526,2]
[337337105,1725615040300,-2072.14,0.00019526,2]
[337337106,1725615040309,-500.0,0.00019526,2]
[337337107,1725615040319,-2445.21,0.00019526,2]
[337337108,1725615040328,-1705.19,0.00019526,2]
[337337109,1725615040337,-533.5,0.00019526,2]
[337337110,1725615040347,-500.0,0.00019526,2]
[337337111,1725615040356,-8076.12,0.00019526,2]
[337337112,1725615040366,-2033.57,0.00019526,2]
[337337113,1725615040375,-2493.44,0.00019526,2]
[337337114,1725615040385,-500.0,0.00019526,2]
[337337115,1725615040394,-150.0,0.00019532,2]
[337337116,1725615040404,-500.0,0.00019535,2]
[337337117,1725615040413,-500.0,0.00019535,2]
[337337118,1725615040422,-590.59089894,0.00019535,2]
[337337119,1725615040432,-500.0,0.00019535,2]
[337337120,1725615040441,-500.0,0.00019535,2]
[337337121,1725615040451,-500.0,0.00019535,2]
[337337122,1725615040461,-500.0,0.00019535,2]
[337337123,1725615040470,-500.0,0.00019535,2]
[337337124,1725615040479,-500.0,0.00019535,2]
[337337125,1725615040488,-500.0,0.00019535,2]
[337337126,1725615040498,-500.0,0.00019535,2]
[337337127,1725615040507,-500.0,0.00019535,2]
[337337128,1725615040517,-500.0,0.00019535,2]
[337337129,1725615040526,-500.0,0.00019535,2]
[337337130,1725615040536,-500.0,0.00019535,2]
[337337131,1725615040545,-500.0,0.00019535,2]
[337337132,1725615040555,-500.0,0.00019535,2]
[337337133,1725615040565,-500.0,0.00019535,2]
[337337134,1725615040575,-500.0,0.00019535,2]
[337337135,1725615040584,-500.0,0.00019535,2]
[337337136,1725615040595,-500.0,0.00019535,2]
[337337137,1725615040605,-500.0,0.00019535,2]
[337337138,1725615040617,-500.0,0.00019535,2]
[337337139,1725615040627,-500.0,0.00019535,2]
[337337140,1725615040637,-500.0,0.00019535,2]
[337337141,1725615040646,-500.0,0.00019535,2]
[337337142,1725615040656,-500.0,0.00019535,2]
[337337143,1725615040665,-500.0,0.00019535,2]
[337337144,1725615040675,-500.0,0.00019535,2]
[337337145,1725615040684,-500.0,0.00019535,2]
[337337146,1725615040694,-500.0,0.00019535,2]
[337337147,1725615040703,-500.0,0.00019535,2]
[337337148,1725615040712,-500.0,0.00019535,2]
[337337149,1725615040722,-354.45403437,0.00019535,2]
[337337150,1725615040731,-500.0,0.00019535,2]
[337337151,1725615040741,-500.0,0.00019535,2]
[337337152,1725615040751,-500.0,0.00019535,2]
[337337153,1725615040761,-500.0,0.00019535,2]
[337337154,1725615040771,-500.0,0.00019535,2]
[337337155,1725615040780,-500.0,0.00019535,2]
[337337156,1725615040790,-500.0,0.00019535,2]
[337337157,1725615040799,-500.0,0.00019535,2]
[337337158,1725615040808,-500.0,0.00019535,2]
[337337159,1725615040818,-500.0,0.00019535,2]
[337337160,1725615040827,-500.0,0.00019535,2]
[337337161,1725615040836,-500.0,0.00019535,2]
[337337162,1725615040847,-500.0,0.00019535,2]
[337337163,1725615040856,-500.0,0.00019535,2]
[337337164,1725615040865,-500.0,0.00019535,2]
[337337165,1725615040875,-500.0,0.00019535,2]
[337337166,1725615040884,-500.0,0.00019535,2]
[337337167,1725615040893,-210.52420212,0.00019535,2]
[337337168,1725615040902,-500.0,0.00019535,2]
[337337169,1725615040912,-500.0,0.00019535,2]
[337337170,1725615040921,-500.0,0.00019535,2]
[337337171,1725615040931,-500.0,0.00019535,2]
[337337172,1725615040940,-500.0,0.00019535,2]
[337337173,1725615040949,-500.0,0.00019535,2]
[337337174,1725615040958,-500.0,0.00019535,2]
[337337175,1725615040968,-500.0,0.00019535,2]
[337337176,1725615040977,-500.0,0.00019535,2]
[337337177,1725615040987,-500.0,0.00019535,2]
[337337178,1725615040996,-500.0,0.00019535,2]
[337337179,1725615041006,-500.0,0.00019535,2]
[337337180,1725615041015,-500.0,0.00019535,2]
[337337181,1725615041025,-500.0,0.00019535,2]
[337337182,1725615041034,-500.0,0.00019535,2]
[337337183,1725615041043,-500.0,0.00019535,2]
[337337184,1725615041053,-500.0,0.00019535,2]
[337337185,1725615041062,-349.99999999,0.00019535,2]
[337337186,1725615041071,-500.0,0.00019535,2]
[337337187,1725615041082,-500.0,0.00019535,2]
[337337188,1725615041093,-500.0,0.00019535,2]
[337337189,1725615041110,-500.0,0.00019535,2]
[337337190,1725615041119,-500.0,0.00019535,2]
[337337191,1725615041128,-5840.53024601,0.00019536,3]
[337337192,1725615041137,-83368.6394084,0.00019536,2]
[337337193,1725615041146,-500.0,0.00019536,2]
[337337194,1725615041155,-500.0,0.00019536,2]
[337337195,1725615041165,-500.0,0.00019536,2]
[337337196,1725615041174,-500.0,0.00019536,2]
[337337197,1725615041183,-1016.55,0.00019536,2]
[337337198,1725615041192,-181.4378267,0.00019536,2]
[337337199,1725615041204,-500.0,0.00019536,2]
[337337200,1725615041213,-500.0,0.00019536,2]
[337337201,1725615041222,-500.0,0.00019536,2]
[337337202,1725615041231,-500.0,0.00019536,2]
[337337203,1725615041240,-500.0,0.00019536,2]
[337337204,1725615041250,-2981.29,0.00019536,2]
[337337205,1725615041260,-500.0,0.00019536,2]
[337337206,1725615041270,-1519.09,0.00019536,2]
[337337207,1725615041280,-1713.65,0.00019536,2]
[337337208,1725615041289,-1325.26,0.00019536,2]
[337337209,1725615041299,-500.0,0.00019536,2]
[337337210,1725615041308,-1557.63,0.00019536,2]
[337337211,1725615041318,-3437.12,0.00019536,2]
[337337212,1725615041327,-2531.86,0.00019536,2]
[337337213,1725615041337,-500.0,0.00019536,2]
[337337214,1725615041349,-500.0,0.00019536,2]
[337337215,1725615041358,-2983.98,0.00019536,2]
[337337216,1725615041592,-10227.94,0.00019536,2]
[337337217,1725615041604,-10227.94,0.00019536,2]
[337337218,1725615041615,-10227.94,0.00019536,2]
[337337219,1725615041624,-10227.94,0.00019536,2]
[337337220,1725615041635,-10227.94,0.00019536,2]
[337337221,1725615041644,-500.0,0.00019536,2]
[337337222,1725615041653,-545.23925302,0.00019536,2]
[337337223,1725615041662,-1655.54,0.00019536,2]
[337337224,1725615041671,-1015.84,0.00019536,2]
[337337225,1725615041681,-1430.1,0.00019536,2]
[337337226,1725615041690,-500.0,0.00019536,2]
[337337227,1725615041699,-2738.31,0.00019536,2]
[337337228,1725615041709,-3136.84,0.00019536,2]
[337337229,1725615041718,-3584.44,0.00019536,2]
[337337230,1725615041727,-1939.09,0.00019536,2]
[337337231,1725615041737,-1520.02,0.00019536,2]
[337337232,1725615041746,-500.0,0.00019536,2]
[337337233,1725615041755,-1775.52,0.00019536,2]
[337337234,1725615041764,-500.0,0.00019536,2]
[337337235,1725615041774,-500.25,0.00019536,2]
[337337236,1725615041783,-584.85,0.00019536,2]
[337337237,1725615041794,-500.0,0.00019536,2]
[337337238,1725615041803,-502.6155908,0.00019536,2]
[337337239,1725615041814,-500.0,0.00019536,2]
[337337240,1725615041823,-500.0,0.00019536,2]
[337337241,1725615041833,-26972.99,0.00019536,2]
[337337242,1725615041843,-1730.52,0.00019536,2]
[337337243,1725615041853,-500.0,0.00019536,2]
[337337244,1725615041862,-500.0,0.00019536,2]
[337337245,1725615041872,-586.11902289,0.00019536,2]
[337337246,1725615041882,-644.08,0.00019536,2]
[337337247,1725615041892,-3500.27,0.00019536,2]
[337337248,1725615041902,-500.0,0.00019536,2]
[337337249,1725615041912,-500.0,0.00019536,2]
[337337250,1725615041921,-500.0,0.00019536,2]
[337337251,1725615041931,-1488.03,0.00019536,2]
[337337252,1725615041940,-3079.79,0.00019536,2]
[337337253,1725615041949,-2792.18,0.00019536,2]
[337337254,1725615041958,-562.88,0.00019536,2]
[337337255,1725615041968,-500.0,0.00019536,2]
[337337256,1725615041978,-711.21,0.00019536,2]
[337337257,1725615041988,-500.0,0.00019536,2]
[337337258,1725615041998,-500.0,0.00019536,2]
[337337259,1725615042008,-500.0,0.00019536,2]
[337337260,1725615042019,-585.77,0.00019536,2]
[337337261,1725615042030,-500.0,0.00019536,2]
[337337262,1725615042041,-3895.33,0.00019536,2]
[337337263,1725615042051,-2579.5,0.00019536,2]
[337337264,1725615042061,-568.00990904,0.00019536,2]
[337337265,1725615042083,-383.22569091,0.00019536,2]
[337337282,1725615230147,167.808552,0.00018664,2]
[337337284,1725615267450,891.93716767,0.0001881,2]
[337337286,1725615356223,2502.6943855,0.00018503,2]
[337337289,1725616165821,594.62477867,0.0001881,2]
[337337347,1725616232698,-2670.5029375,0.00019178,2]
[337337360,1725616238224,-765.13149874,0.00019178,2]
[337337361,1725616238236,-2399.59761476,0.00019178,2]
[337337362,1725616238246,-224.93604539,0.00019218,2]
[337337363,1725616238256,-328.31,0.00019309,3]
[337337364,1725616238266,-594.62477867,0.0001931,2]
[337337365,1725616238275,-150.0,0.00019316,2]
[337337366,1725616238285,-300.0,0.00019317,2]
[337337367,1725616238294,-500.0,0.00019318,2]
[337337368,1725616238304,-1988.81,0.00019318,2]
[337337369,1725616238313,-592.08,0.00019318,2]
[337337370,1725616238324,-592.08,0.00019318,2]
[337337371,1725616238333,-592.08,0.00019318,2]
[337337372,1725616238343,-592.08,0.00019318,2]
[337337373,1725616238353,-592.08,0.00019318,2]
[337337374,1725616238362,-592.08,0.00019318,2]
[337337375,1725616238372,-592.08,0.00019318,2]
[337337376,1725616238382,-592.08,0.00019318,2]
[337337377,1725616238392,-592.08,0.00019318,2]
[337337378,1725616238401,-592.08,0.00019318,2]
[337337379,1725616238410,-592.08,0.00019318,2]
[337337380,1725616238420,-592.08,0.00019318,2]
[337337381,1725616238429,-592.08,0.00019318,2]
[337337382,1725616238439,-592.08,0.00019318,2]
[337337383,1725616238448,-592.08,0.00019318,2]
[337337384,1725616238458,-592.08,0.00019318,2]
[337337385,1725616238468,-592.08,0.00019318,2]
[337337386,1725616238478,-592.08,0.00019318,2]
[337337387,1725616238487,-500.0,0.00019318,2]
[337337388,1725616238497,-500.0,0.00019318,2]
[337337389,1725616238507,-164.94498241,0.00019318,2]
[337337390,1725616238517,-500.0,0.00019318,2]
[337337391,1725616238528,-500.0,0.00019318,2]
[337337392,1725616238537,-500.0,0.00019318,2]
[337337393,1725616238548,-500.0,0.00019318,2]
[337337394,1725616238560,-500.0,0.00019318,2]
[337337395,1725616238569,-500.0,0.00019318,2]
[337337396,1725616238578,-500.0,0.00019318,2]
[337337397,1725616238589,-500.0,0.00019318,2]
[337337398,1725616238598,-500.0,0.00019318,2]
[337337399,1725616238607,-500.0,0.00019318,2]
[337337400,1725616238618,-500.0,0.00019318,2]
[337337401,1725616238628,-500.0,0.00019318,2]
[337337402,1725616238638,-500.0,0.00019318,2]
[337337403,1725616238648,-500.0,0.00019318,2]
[337337404,1725616238657,-500.0,0.00019318,2]
[337337405,1725616238667,-500.0,0.00019318,2]
[337337406,1725616238677,-500.0,0.00019318,2]
[337337407,1725616238686,-500.0,0.00019318,2]
[337337408,1725616238696,-500.0,0.00019318,2]
[337337409,1725616238705,-500.0,0.00019318,2]
[337337410,1725616238715,-500.0,0.00019318,2]
[337337411,1725616238724,-500.0,0.00019318,2]
[337337412,1725616238734,-500.0,0.00019318,2]
[337337413,1725616238744,-500.0,0.00019318,2]
[337337414,1725616238755,-500.0,0.00019318,2]
[337337415,1725616238764,-500.0,0.00019318,2]
[337337416,1725616238773,-500.0,0.00019318,2]
[337337417,1725616238783,-500.0,0.00019318,2]
[337337418,1725616238792,-173.73637396,0.00019318,2]
[337337419,1725616238802,-500.0,0.00019318,2]
[337337420,1725616238812,-500.0,0.00019318,2]
[337337421,1725616238821,-500.0,0.00019318,2]
[337337422,1725616238831,-500.0,0.00019318,2]
[337337423,1725616238841,-500.0,0.00019318,2]
[337337424,1725616238851,-500.0,0.00019318,2]
[337337425,1725616238860,-500.0,0.00019318,2]
[337337426,1725616238870,-500.0,0.00019318,2]
[337337427,1725616238880,-500.0,0.00019318,2]
[337337428,1725616238889,-500.0,0.00019318,2]
[337337429,1725616238899,-500.0,0.00019318,2]
[337337430,1725616238909,-500.0,0.00019318,2]
[337337431,1725616238919,-500.0,0.00019318,2]
[337337432,1725616238929,-500.0,0.00019318,2]
[337337433,1725616238938,-500.0,0.00019318,2]
[337337434,1725616238948,-500.0,0.00019318,2]
[337337435,1725616238957,-500.0,0.00019318,2]
[337337436,1725616238967,-500.0,0.00019318,2]
[337337437,1725616238977,-500.0,0.00019318,2]
[337337438,1725616238987,-500.0,0.00019318,2]
[337337439,1725616238996,-500.0,0.00019318,2]
[337337440,1725616239006,-500.0,0.00019318,2]
[337337441,1725616239015,-329.53283305,0.00019318,2]
[337337442,1725616239024,-500.0,0.00019318,2]
[337337443,1725616239034,-500.0,0.00019318,2]
[337337444,1725616239045,-500.0,0.00019318,2]
[337337445,1725616239054,-500.0,0.00019318,2]
[337337446,1725616239064,-500.0,0.00019318,2]
[337337447,1725616239073,-500.0,0.00019318,2]
[337337448,1725616239083,-500.0,0.00019318,2]
[337337449,1725616239092,-500.0,0.00019318,2]
[337337450,1725616239102,-500.0,0.00019318,2]
[337337451,1725616239112,-500.0,0.00019318,2]
[337337452,1725616239121,-500.0,0.00019318,2]
[337337453,1725616239131,-500.0,0.00019318,2]
[337337454,1725616239140,-500.0,0.00019318,2]
[337337455,1725616239150,-500.0,0.00019318,2]
[337337456,1725616239159,-500.0,0.00019318,2]
[337337457,1725616239169,-500.0,0.00019318,2]
[337337458,1725616239179,-500.0,0.00019318,2]
[337337459,1725616239188,-500.0,0.00019318,2]
[337337460,1725616239198,-500.0,0.00019318,2]
[337337461,1725616239208,-500.0,0.00019318,2]
[337337462,1725616239218,-500.0,0.00019318,2]
[337337463,1725616239228,-500.0,0.00019318,2]
[337337464,1725616239238,-500.0,0.00019318,2]
[337337465,1725616239247,-200.0,0.00019318,2]
[337337466,1725616239257,-500.0,0.00019318,2]
[337337467,1725616239267,-500.0,0.00019318,2]
[337337468,1725616239277,-500.0,0.00019318,2]
[337337469,1725616239287,-500.0,0.00019318,2]
[337337470,1725616239297,-500.0,0.00019318,2]
[337337471,1725616239308,-500.0,0.00019318,2]
[337337472,1725616239317,-500.0,0.00019318,2]
[337337473,1725616239327,-500.0,0.00019318,2]
[337337474,1725616239337,-500.0,0.00019318,2]
[337337475,1725616239347,-500.0,0.00019318,2]
[337337476,1725616239356,-500.0,0.00019318,2]
[337337477,1725616239366,-500.0,0.00019318,2]
[337337478,1725616239375,-500.0,0.00019318,2]
[337337479,1725616239385,-500.0,0.00019318,2]
[337337480,1725616239394,-500.0,0.00019318,2]
[337337481,1725616239403,-500.0,0.00019318,2]
[337337483,1725616239637,-500.0,0.00019318,2]
[337337484,1725616239648,-500.0,0.00019318,2]
[337337486,1725616239658,-500.0,0.00019318,2]
[337337488,1725616239667,-500.0,0.00019318,2]
[337337490,1725616239676,-500.0,0.00019318,2]
[337337492,1725616239685,-500.0,0.00019318,2]
[337337494,1725616239695,-500.0,0.00019318,2]
[337337496,1725616239704,-500.0,0.00019318,2]
[337337498,1725616239713,-500.0,0.00019318,2]
[337337500,1725616239722,-500.0,0.00019318,2]
[337337502,1725616239731,-500.0,0.00019318,2]
[337337504,1725616239741,-232.9532833,0.00019318,2]
[337337506,1725616239751,-500.0,0.00019318,2]
[337337508,1725616239762,-500.0,0.00019318,2]
[337337510,1725616239771,-500.0,0.00019318,2]
[337337512,1725616239781,-500.0,0.00019318,2]
[337337514,1725616239790,-500.0,0.00019318,2]
[337337516,1725616239800,-500.0,0.00019318,2]
[337337518,1725616239809,-500.0,0.00019318,2]
[337337520,1725616239818,-373.29532833,0.00019318,2]
[337337522,1725616239828,-279.50122105,0.00019318,2]
[337337524,1725616239837,-500.0,0.00019318,2]
[337337526,1725616239847,-500.0,0.00019318,2]
[337337528,1725616239856,-500.0,0.00019318,2]
[337337530,1725616239866,-500.0,0.00019318,2]
[337337532,1725616239875,-646.43566135,0.00019318,2]
[337337534,1725616239884,-477.08550051,0.00019318,2]
[337337536,1725616239894,-500.0,0.00019318,2]